Cogmind - Beta 13 @@@ ROGUE MODE // 2024.06.15 @ 15:04:00 Player: Lunace Result: Destroyed by M Guard with Advanced Micro-nuke Launcher Performance ------------- Evolutions (9) 4500 Regions Visited (20) 4000 Robots Destroyed (69) 345 Value Destroyed (2534) 2534 Prototype IDs (68) 1360 Alien Tech Used (8) 1600 Bonus (8869) 8869 TOTAL SCORE: 23208 Bonus ------- High Alert Combat Kills 152 Follower Combat Kills 419 Aligned with FarCom 300 Used Core Reset Matrix 3000 Met MAIN.C 5000 Friendly Fire -2 Cogmind --------- Core Integrity 0/1850 Matter 197/300 Energy 98/100 System Corruption 8% Temperature Cool (0) Movement Core (50) Location -1/Command Parts ------- > --- POWER (2) -------- (None) > --- PROPULSION (6) --- (None) > --- UTILITY (15) ----- Spectral Analyzer Advanced Signal Interpreter Advanced Melee Analysis Suite Improved Hacking Suite Advanced System Shield > --- WEAPON (2) ------- (None) > --- INVENTORY (5) ---- Improved Remote Shield Subatomic Replicator Peak State ------------ > --- POWER ------------ Light Particle Reactor > --- PROPULSION ------- Field Propulsion Array Q-thruster Improved Diametric Drive Cooled Q-thruster > --- UTILITY ---------- Small Storage Unit Advanced Trap Scanner Enhanced Optical Array Long-range Sensor Array Advanced Signal Interpreter Advanced Hacking Suite Advanced Hacking Suite Advanced Hacking Suite Advanced Hacking Suite Improved System Shield Advanced Corruption Screen Trap Reconfigurator > --- WEAPON ----------- Core Stripper > --- INVENTORY -------- Superbattery Spectral Analyzer Tachyon Dispersion Ray Gamma Bomb Array Hellfire Missile Launcher Z-bomb Delivery System Advanced Datajack Vibroblade [Rating: 155] Favorites ----------- Power Light Ion Engine Engine Light Ion Engine Power Core Micro Nuclear Core Reactor Light Antimatter Reactor Propulsion VSS Leg Treads Light Treads Leg VSS Leg Hover Unit Improved Gyrokinetic Inverter Flight Unit Nuclear Pulse Array Utility Advanced Hacking Suite Device Trap Reconfigurator Storage Small Storage Unit Processor Enhanced Optical Array Hackware Advanced Hacking Suite Weapon Improved Assault Rifle Energy Gun Tachyon Dispersion Ray Energy Cannon Nova Cannon Ballistic Gun Improved Assault Rifle Ballistic Cannon Linear Accelerator Launcher Grenade Launcher Special Weapon Field Lobotomy Kit Impact Weapon Core Stripper Slashing Weapon Vibroblade Piercing Weapon Lance Special Melee Weapon Improved Datajack Build | -11 -10 -10 -10 -9 -8 -7 -7 -7 -7 -7 -6 -5 -4 -3 -3 -2 -2 -2 -1 -1 ------- Run | Yrd Mat Min Exi Min Mat Fac Was Fac Low Low Fac Fac Fac Res Tes Res Qua Sec Acc Com Slots Evolved 18 | . . . . . 4 2 . . . . 2 2 2 2 . 2 . . 2 . Power 1 | . . . . . . . . . . . . . . . . . . . 1 . Propulsion 4 | . . . . . 2 . . . . . . . 2 . . . . . . . Utility 13 | . . . . . 2 2 . . . . 2 2 . 2 . 2 . . 1 . Weapon . | . . . . . . . . . . . . . . . . . . . . . Parts Attached 163 | 7 1 . 1 . 14 15 5 3 1 . 12 18 19 5 13 10 4 5 9 21 Power 15 | 1 . . . . 2 2 1 . . . . 1 2 . . 1 . 1 . 4 Engine 4 | 1 . . . . 1 2 . . . . . . . . . . . . . . Core 3 | . . . . . 1 . 1 . . . . 1 . . . . . . . . Reactor 8 | . . . . . . . . . . . . . 2 . . 1 . 1 . 4 Propulsion 39 | 2 . . . . 5 5 3 1 1 . 1 2 2 2 1 2 . 1 3 8 Treads 2 | 2 . . . . . . . . . . . . . . . . . . . . Leg 10 | . . . . . 5 5 . . . . . . . . . . . . . . Wheel . | . . . . . . . . . . . . . . . . . . . . . Hover 1 | . . . . . . . . . . . . . . . . . . . . 1 Flight 26 | . . . . . . . 3 1 1 . 1 2 2 2 1 2 . 1 3 7 Utility 68 | 2 . . 1 . 3 4 1 1 . . 10 11 11 3 7 4 1 2 4 3 Device 42 | 1 . . . . 2 3 . . . . 6 8 8 2 5 4 . . 1 2 Storage 6 | 1 . . 1 . . . . 1 . . . 1 . . . . . . 1 1 Processor 10 | . . . . . 1 1 . . . . 1 . 2 1 1 . 1 1 1 . Hackware 10 | . . . . . . . 1 . . . 3 2 1 . 1 . . 1 1 . Protection . | . . . . . . . . . . . . . . . . . . . . . Artifact . | . . . . . . . . . . . . . . . . . . . . . Weapon 41 | 2 1 . . . 4 4 . 1 . . 1 4 4 . 5 3 3 1 2 6 Energy Gun 3 | . . . . . . . . . . . . 1 . . 1 . . 1 . . Energy Cannon 1 | . . . . . . . . . . . . . . . . . . . . 1 Ballistic Gun 6 | 2 . . . . 2 2 . . . . . . . . . . . . . . Ballistic Cannon 1 | . . . . . . . . . . . . . . . . . . . . 1 Launcher 10 | . 1 . . . . 1 . . . . . 1 1 . 1 1 . . 2 2 Special Weapon 1 | . . . . . 1 . . . . . . . . . . . . . . . Impact Weapon 1 | . . . . . . . . . . . . . . . . . 1 . . . Slashing Weapon 5 | . . . . . 1 1 . . . . . . . . . 1 2 . . . Piercing Weapon 5 | . . . . . . . . 1 . . . 2 1 . 1 . . . . . Special Melee Weapon 8 | . . . . . . . . . . . 1 . 2 . 2 1 . . . 2 Unidentified Prototypes 12 | . . . . . 1 1 . . . . . . 2 . 3 1 3 . . 1 Parts Lost 41 | . . . . . . . . . . . . 4 . . 2 . . 6 12 17 Power 4 | . . . . . . . . . . . . 1 . . . . . . 1 2 Propulsion 13 | . . . . . . . . . . . . . . . 1 . . 2 5 5 Utility 15 | . . . . . . . . . . . . 1 . . 1 . . 3 5 5 Weapon 9 | . . . . . . . . . . . . 2 . . . . . 1 1 5 Highest Loss Streak 14 | . . . . . . . . . . . . 2 . . 1 . . 5 11 14 To Critical Strikes . | . . . . . . . . . . . . . . . . . . . . . Average Slot Usage (%) 85 | . 100 100 100 100 80 94 66 77 84 84 84 78 81 84 88 80 78 82 62 50 Engine 4 | . 14 14 14 14 4 7 . . . . . . . . . . . . . . Core 1 | . . . . . 4 . 6 7 7 7 6 4 2 . . . . . . . Reactor 1 | . . . . . . . . . . . . . 2 4 4 4 4 4 3 2 Treads 5 | . 28 28 28 28 2 . . . . . . . . . . . . . . . Leg 7 | . . . . . 27 30 . . . . . . . . . . . . . . Flight 9 | . . . . . . . 20 25 30 30 26 12 15 18 19 13 17 19 13 7 Device 13 | . 14 14 14 14 9 19 15 13 7 7 11 14 12 14 13 15 13 12 6 1 Storage 7 | . 14 14 14 14 9 7 . 1 7 7 6 6 5 4 4 4 4 4 3 3 Processor 8 | . . . . . 5 12 7 7 7 7 6 5 7 14 14 13 13 13 14 13 Hackware 10 | . . . . . . . . 7 7 7 13 19 24 23 22 21 21 19 16 14 Ballistic Gun 5 | . 18 14 14 14 10 10 13 7 7 7 1 . . . . . . . . . Launcher 3 | . 9 14 14 14 2 3 . . . . . . . . . . . . . . Piercing Weapon 1 | . . . . . . . . 6 7 7 6 5 5 4 3 2 . . . . Special Melee Weapon 1 | . . . . . . . . . . . 4 3 3 . 1 2 . . . . Naked Turns . | . . . . . . . . . . . . . . . . . . . . . Heaviest Build 46 | 13 14 14 29 29 38 46 17 21 21 21 24 25 27 28 34 30 30 35 35 44 Greatest Support 65 | 40 40 40 40 40 51 65 18 23 23 23 24 26 41 44 44 37 40 51 55 50 Greatest Overweight (x) 2 | . . . . . 2 . . . . . . . . . . 1 . . 1 1 Average Overweight (x) . | . . . . . . . . . . . . . . . . . . . . . Largest Inventory Capacity 25 | 8 8 8 15 15 15 15 15 8 8 8 8 8 8 8 8 8 8 8 8 25 Average Capacity 9 | 7 8 8 9 15 15 15 6 5 8 8 8 8 8 8 8 8 8 8 7 5 Most Carried 15 | 1 2 3 9 9 12 15 12 5 5 5 8 8 8 7 8 8 8 7 6 5 Average Carried 6 | . 1 2 7 9 10 10 5 4 4 4 5 7 6 4 6 5 6 6 5 4 Final Capacity 15 | 8 8 8 15 15 15 15 5 8 8 8 8 8 8 8 8 8 8 8 5 5 Final Carried 12 | 1 2 3 9 9 12 12 5 4 4 5 8 6 8 5 7 6 7 7 4 2 Class Distribution -------------------- 22% | Mutant 15% | Hacker-Scout 13% | Wizard-Scout 9% | Skirmisher 7% | Scout 6% | Scavenger-Skirmisher 5% | Wizard-Mutant 4% | Hacker-Mutant Dominant Class ---------------- Mutant | -10/Materials Mutant | -10/Mines Mutant | -10/Exiles Mutant | -9/Mines Commander-Mutant | -8/Materials Skirmisher | -7/Factory Scout | -7/Waste Scout | -7/Factory Scout | -7/Lower Caves Scout | -7/Lower Caves Hacker-Scout | -6/Factory Hacker-Scout | -5/Factory Wizard-Mutant | -4/Factory Wizard-Scout | -3/Research Wizard-Scout | -3/Testing Wizard-Ninja | -2/Research Wizard-Scout | -2/Quarantine Wizard-Scout | -2/Section 7 Hacker-Scout | -1/Access Hacker-Mutant | -1/Command Resources | -11 -10 -10 -10 -9 -8 -7 -7 -7 -7 -7 -6 -5 -4 -3 -3 -2 -2 -2 -1 -1 ----------- Run | Yrd Mat Min Exi Min Mat Fac Was Fac Low Low Fac Fac Fac Res Tes Res Qua Sec Acc Com Matter Collected 2899 | 311 8 52 . 17 179 500 . . 199 . . 337 141 173 25 180 65 100 70 542 Remotely . | . . . . . . . . . . . . . . . . . . . . . Salvage Created 2555 | 138 8 62 . . 61 611 . . 84 . . 517 141 173 119 216 . 50 96 279 Parts 142 | 21 3 7 . . 5 40 . . 4 . . 21 6 6 11 3 . 6 8 1 Haulers Intercepted 5 | . . . . . 1 . . . . . . 3 . . . 1 . . . . Recyclers Shooed . | . . . . . . . . . . . . . . . . . . . . . Parts Field Recycled . | . . . . . . . . . . . . . . . . . . . . . Retrieved Matter . | . . . . . . . . . . . . . . . . . . . . . Parts Self-Destructed 4 | . . . . . . . . . 4 . . . . . . . . . . . Prevented 3 | . . . . . . . . . 3 . . . . . . . . . . . Kills | -11 -10 -10 -10 -9 -8 -7 -7 -7 -7 -7 -6 -5 -4 -3 -3 -2 -2 -2 -1 -1 ------- Run | Yrd Mat Min Exi Min Mat Fac Was Fac Low Low Fac Fac Fac Res Tes Res Qua Sec Acc Com Combat Hostiles Destroyed 37 | . 3 5 . . . 15 . . 2 . . 2 . 1 . . . 1 8 . Melee 6 | . . . . . . . . . 2 . . 2 . 1 . . . 1 . . Guns 9 | . . 1 . . . 8 . . . . . . . . . . . . . . AOE 22 | . 3 4 . . . 7 . . . . . . . . . . . . 8 . Classes Destroyed 14 | 2 1 1 . . 2 5 . . . . . . . . 1 . . 1 1 . Worker 8 | . . . . . . 3 . . . . . 1 . . . . . 1 1 2 Builder 3 | . . . . . . 2 . . . . . 1 . . . . . . . . Tunneler 4 | 4 . . . . . . . . . . . . . . . . . . . . Hauler 5 | . . . . . 1 . . . . . . 3 . . . 1 . . . . Recycler 4 | 1 . . . . . . . . . . . . 1 1 . 1 . . . . Operator 1 | . . . . . . . . . . . . . . . 1 . . . . . Watcher 7 | . . . . . 1 . . . . . . 1 1 . 2 . . . 2 . Swarmer 11 | . 3 3 . . . 4 . . . . . . . 1 . . . . . . Cutter 1 | . . . . . . . . . . . . . . . . . . 1 . . Grunt 15 | . . 2 . . . 6 . . . . . . . . . . . . 7 . Duelist 1 | . . . . . . . . . . . . . . . . . . . 1 . Specialist 2 | . . . . . . 2 . . . . . . . . . . . . . . Hunter 1 | . . . . . . 1 . . . . . . . . . . . . . . Programmer 6 | . . . . . . 2 . . 2 . . 2 . . . . . . . . Best Kill Streak 8 | 4 3 3 . . 1 5 . . 1 . . 2 1 2 1 1 . 2 8 1 Combat Bots Only 8 | . 3 3 . . . 4 . . 1 . . 1 . 1 . . . 1 8 . Max Kills in Single Turn 3 | 1 3 2 . . 1 2 . . 1 . . 1 1 1 1 1 . 1 3 1 Gunslinging . | . . . . . . . . . . . . . . . . . . . . . Exploded 3 | . 3 2 . . . 2 . . . . . . . . . . . . 3 . Melee 1 | . . . . . . . . . 1 . . 1 . 1 . . . 1 . . Uniques/NPCs Destroyed . | . . . . . . . . . . . . . . . . . . . . . Combat | -11 -10 -10 -10 -9 -8 -7 -7 -7 -7 -7 -6 -5 -4 -3 -3 -2 -2 -2 -1 -1 -------- Run | Yrd Mat Min Exi Min Mat Fac Was Fac Low Low Fac Fac Fac Res Tes Res Qua Sec Acc Com Hostile Shots Fired 464 | . 4 6 . . 18 72 . 7 2 . . 47 2 2 13 7 2 52 110 120 Missed 204 | . 2 3 . . 7 22 . 5 1 . . 19 2 1 8 3 . 27 49 55 Damage Taken 6975 | . 15 41 . . 287 847 . 23 14 . . 538 . 24 119 93 91 647 1978 2258 Core 2558 | . . 14 . . 163 111 . . . . . 123 . . 25 71 50 127 851 1023 Absorbed by Shields . | . . . . . . . . . . . . . . . . . . . . . Ignored by Resistances 227 | . . . . . . . . . . . . . . . . . . 8 . 219 Regen/Repaired (Parts) 76 | . . . . . . . . . . . . . 19 . 24 . . . 33 . Core Remaining (%) 90 | 100 . . . 94 70 . . . . 84 100 87 100 . 98 . . 85 . . Volleys Fired 132 | 8 2 8 . . 15 60 . . . . . 2 . . 1 1 . 2 3 30 Largest 2 | 2 1 2 . . 2 2 . . . . . 1 . . 1 1 . 1 1 1 Hottest 113 | 40 30 50 . . 46 53 . . . . . 39 . . 80 60 . 80 30 113 Shots Fired 184 | 16 2 10 . . 20 97 . . . . . 2 . . 1 1 . 2 3 30 Gun 117 | 16 . 2 . . 15 81 . . . . . . . . 1 . . 2 . . Cannon 28 | . . . . . . . . . . . . . . . . . . . . 28 Launcher 34 | . 2 8 . . . 16 . . . . . 2 . . . 1 . . 3 2 Special 5 | . . . . . 5 . . . . . . . . . . . . . . . Kinetic 136 | 16 . 2 . . 15 81 . . . . . . . . . . . . . 22 Thermal 6 | . . . . . . . . . . . . . . . . . . . . 6 Explosive 34 | . 2 8 . . . 16 . . . . . 2 . . . 1 . . 3 2 Electromagnetic 3 | . . . . . . . . . . . . . . . 1 . . 2 . . Robot Hit Streak 22 | 4 3 7 . . 9 14 . . . . . . . . 1 . . . 2 22 Robot Miss Streak 2 | 2 . 2 . . 2 2 . . . . . . . . . . . 2 1 2 Penetration Max . | . . . . . . . . . . . . . . . . . . . . . Secondary Targets . | . . . . . . . . . . . . . . . . . . . . . Shots Hit Robots 177 | 9 2 5 . . 18 63 . . 5 . . 23 3 2 8 4 . 4 5 26 Core Hits 109 | 5 4 6 . . 3 40 . . 2 . . 9 1 2 4 2 . 8 14 9 Critical Kills 2 | . . . . . . 1 . . . . . . . . . . . . . 1 Critical Parts Destroyed . | . . . . . . . . . . . . . . . . . . . . . Critical Strikes 7 | . . . . . . 1 . . . . . 3 . . . 2 . . . 1 Meltdown 1 | . . . . . . . . . . . . . . . . . . . . 1 Destroy 1 | . . . . . . 1 . . . . . . . . . . . . . . Impale 5 | . . . . . . . . . . . . 3 . . . 2 . . . . Melee Attacks 180 | . . . . . 1 6 . 2 8 . 3 61 25 6 22 17 3 11 13 2 Impact . | . . . . . . . . . . . . . . . . . . . . . Slashing 43 | . . . . . 1 6 . . . . . . . . . 9 3 11 13 . Piercing 128 | . . . . . . . . 2 8 . 3 59 24 6 18 8 . . . . Sneak Attacks 27 | . . . . . 1 1 . . 4 . . 9 2 1 4 3 . . 2 . Combat Hostiles 10 | . . . . . . . . . 4 . . 2 1 . 3 . . . . . Follow-up Attacks . | . . . . . . . . . . . . . . . . . . . . . Damage Inflicted 9206 | 112 283 304 . . 215 1870 . . 323 . . 1057 125 142 193 338 . 441 2828 975 Guns 1094 | 112 . 11 . . 157 786 . . . . . . . . 12 . . 16 . . Cannons 905 | . . . . . . . . . . . . . . . . . . . . 905 Explosions 4247 | . 283 293 . . . 1006 . . . . . . . . . . . 65 2530 70 Melee 2940 | . . . . . 58 78 . . 323 . . 1057 125 142 181 338 . 360 278 . Ramming 20 | . . . . . . . . . . . . . . . . . . . 20 . Kinetic 1888 | 112 . 11 . . 157 786 . . . . . . . . . . . . . 822 Thermal 148 | . . . . . . . . . . . . . . . . . . 65 . 83 Explosive 4182 | . 283 293 . . . 1006 . . . . . . . . . . . . 2530 70 Electromagnetic 28 | . . . . . . . . . . . . . . . 12 . . 16 . . Impact . | . . . . . . . . . . . . . . . . . . . . . Slashing 896 | . . . . . 58 78 . . . . . . . . . 122 . 360 278 . Piercing 2044 | . . . . . . . . . 323 . . 1057 125 142 181 216 . . . . Highest Corruption 5 | . . . . . . 2 2 2 2 2 . 5 2 . . . . . . 5 Average Corruption 1 | . . . . . . 1 2 2 2 2 . 4 1 . . . . . . 1 Corruption Purged 2 | . . . . . . . . . . . . . 2 . . . . . . . Corruption Blocked 8 | . . . . . . . . . . . . . . . 5 . . . 3 . Effects 28 | . . . . . . 6 1 4 4 . . 6 4 . . . . . . 3 Message Errors 5 | . . . . . . 1 . . 2 . . 1 . . . . . . . 1 Matter Fused 5 | . . . . . . 1 . . 1 . . 1 1 . . . . . . 1 Heat Flow Errors 5 | . . . . . . 1 . 2 1 . . . 1 . . . . . . . Energy Discharges 2 | . . . . . . 1 . . . . . . 1 . . . . . . . Parts Rejected 1 | . . . . . . . . . . . . . 1 . . . . . . . Data Loss (minor) 7 | . . . . . . . . 2 . . . 4 . . . . . . . 1 Data Loss (major) 2 | . . . . . . 1 1 . . . . . . . . . . . . . Misfires 1 | . . . . . . 1 . . . . . . . . . . . . . . Overload Shots . | . . . . . . . . . . . . . . . . . . . . . Overflow Damage 960 | . 10 47 . . . 33 . . 36 . . 147 50 . . 167 . . 441 29 Projectiles 29 | . . . . . . . . . . . . . . . . . . . . 29 Explosions 531 | . 10 47 . . . 33 . . . . . . . . . . . . 441 . Melee 400 | . . . . . . . . . 36 . . 147 50 . . 167 . . . . Knockbacks 2 | . . . . . . . . . . . . . . . . . . . . 2 Impact . | . . . . . . . . . . . . . . . . . . . . . Kinetic 2 | . . . . . . . . . . . . . . . . . . . . 2 Secondary . | . . . . . . . . . . . . . . . . . . . . . Self-Inflicted Damage 686 | . . 12 . . . 13 . . . . . . . . . . . . 559 102 Shots 6 | . . 1 . . . 1 . . . . . . . . . . . . 3 1 Rammed 5 | . . . . . . . . . . . . . . . . . . . 5 . Targets Rammed 5 | . . . . . . . . . . . . . . . . . . . 5 . Kicked . | . . . . . . . . . . . . . . . . . . . . . Crushed . | . . . . . . . . . . . . . . . . . . . . . Highest Temperature 350 | . . . . . . 94 . 236 196 . . . 350 . 28 . . 26 . . Average Temperature 85 | . . . . . . 21 . 130 85 . . . 154 . 16 . . 14 . . Received Heat Transfer 756 | . . . . . . 306 . 9 . . . . . . 9 . 9 36 315 72 Effects 4 | . . . . . . . . . . . . . 4 . . . . . . . Interference 3 | . . . . . . . . . . . . . 3 . . . . . . . Matter Decay 1 | . . . . . . . . . . . . . 1 . . . . . . . Siege Activations . | . . . . . . . . . . . . . . . . . . . . . Robots Corrupted . | . . . . . . . . . . . . . . . . . . . . . Combat Hostiles . | . . . . . . . . . . . . . . . . . . . . . Parts Fried . | . . . . . . . . . . . . . . . . . . . . . Impact Corruptions . | . . . . . . . . . . . . . . . . . . . . . Robots Melted 1 | . . . . . . . . . . . . . . . . . . . . 1 Combat Hostiles . | . . . . . . . . . . . . . . . . . . . . . Parts Melted 2 | . . . . . . . . . 1 . . . . . . . . . . 1 Heat Transferred 224 | . . . . . . . . . . . . . . . . . . 150 . 74 Parts Sabotaged . | . . . . . . . . . . . . . . . . . . . . . Parts Stolen . | . . . . . . . . . . . . . . . . . . . . . Parts Stripped . | . . . . . . . . . . . . . . . . . . . . . Power Chain Reactions 1 | . . . . . . . . . . . . . . . . . . 1 . . Alert | -11 -10 -10 -10 -9 -8 -7 -7 -7 -7 -7 -6 -5 -4 -3 -3 -2 -2 -2 -1 -1 ------- Run | Yrd Mat Min Exi Min Mat Fac Was Fac Low Low Fac Fac Fac Res Tes Res Qua Sec Acc Com Peak Influence 1250 | 25 126 197 . . 161 413 144 127 . . 229 493 410 191 325 384 252 411 668 1250 Initial 427 | . 16 48 . . . 2 144 100 . . 98 112 151 158 107 177 216 51 255 427 Average 209 | 11 83 106 . . 48 149 144 106 . . 122 304 253 166 196 257 99 240 368 819 Maximum Alert Level 4 | . . . . . . 2 . . . . 1 2 2 . 1 1 1 2 2 4 Low Security (%) 58 | 100 100 100 . 100 100 66 100 100 . . 95 9 28 100 70 29 66 39 . . Level 1 32 | . . . . . . 30 . . . . 4 79 64 . 29 70 33 57 74 . Level 2 6 | . . . . . . 2 . . . . . 10 7 . . . . 3 25 51 Level 3 1 | . . . . . . . . . . . . . . . . . . . . 31 Level 4 . | . . . . . . . . . . . . . . . . . . . . 17 Level 5 . | . . . . . . . . . . . . . . . . . . . . . High Security . | . . . . . . . . . . . . . . . . . . . . . Max Security . | . . . . . . . . . . . . . . . . . . . . . Squads Dispatched 41 | . 1 . . . 1 9 . . . . 3 10 4 . 3 3 . 5 1 1 Investigation 18 | . 1 . . . 1 2 . . . . 2 6 1 . 2 1 . 1 1 . Extermination 8 | . . . . . . 4 . . . . . 1 1 . 1 . . 1 . . Reinforcement 14 | . . . . . . 3 . . . . 1 2 2 . . 2 . 3 . 1 Assault 1 | . . . . . . . . . . . . 1 . . . . . . . . Garrison . | . . . . . . . . . . . . . . . . . . . . . Intercept . | . . . . . . . . . . . . . . . . . . . . . Searches Triggered 2 | . . . . . . . . . . . . 2 . . . . . . . . Construction Impeded . | . . . . . . . . . . . . . . . . . . . . . Haulers Reinforced . | . . . . . . . . . . . . . . . . . . . . . Active Scanning Responses 5 | . . . . . . 1 . . . . 1 3 . . . . . . . . Cargo Convoy Interrupts . | . . . . . . . . . . . . . . . . . . . . . Stealth | -11 -10 -10 -10 -9 -8 -7 -7 -7 -7 -7 -6 -5 -4 -3 -3 -2 -2 -2 -1 -1 --------- Run | Yrd Mat Min Exi Min Mat Fac Was Fac Low Low Fac Fac Fac Res Tes Res Qua Sec Acc Com Distress Signals 9 | . . . . . 2 . . . . . . 1 1 . 1 3 . 1 . . Communications Jammed . | . . . . . . . . . . . . . . . . . . . . . Distress Signals . | . . . . . . . . . . . . . . . . . . . . . Times Spotted 208 | . 3 5 . . 9 27 6 4 3 . . 20 10 1 18 11 3 38 28 22 Peak Tracking Total 23 | . 3 3 . . 5 4 6 4 4 . . 5 6 1 8 8 3 23 20 11 Tactical Retreats 24 | . . . . . . . . . 2 . . 2 3 . 1 3 . 6 3 4 Traps | -11 -10 -10 -10 -9 -8 -7 -7 -7 -7 -7 -6 -5 -4 -3 -3 -2 -2 -2 -1 -1 ------- Run | Yrd Mat Min Exi Min Mat Fac Was Fac Low Low Fac Fac Fac Res Tes Res Qua Sec Acc Com Traps Triggered 7 | . 1 . . . . 2 . 1 . . . . 1 1 . . . . 1 . Indirectly . | . . . . . . . . . . . . . . . . . . . . . Trap Hack Attempts 5 | . . . . . . . . . . . 5 . . . . . . . . . Triggered . | . . . . . . . . . . . . . . . . . . . . . Disarmed 1 | . . . . . . . . . . . 1 . . . . . . . . . Reprogrammed 2 | . . . . . . . . . . . 2 . . . . . . . . . Reused 36 | . . . . . . 2 . . . . 1 11 12 . 5 . 3 2 . . Traps Reconfigurated 113 | . . . . . . 10 . 7 . . 7 15 33 9 4 9 14 4 1 . Traps Extracted 11 | . . . . . . . . . . . 7 4 . . . . . . . . Installed 11 | . . . . . . . . . . . 3 4 . . 4 . . . . . Triggered 41 | . . . . . . 2 . . 5 . 1 11 12 . 5 . 3 2 . . Most Traps Carried 7 | . . . . . . . . . . . 5 7 4 4 4 . . . . . Machines | -11 -10 -10 -10 -9 -8 -7 -7 -7 -7 -7 -6 -5 -4 -3 -3 -2 -2 -2 -1 -1 ---------- Run | Yrd Mat Min Exi Min Mat Fac Was Fac Low Low Fac Fac Fac Res Tes Res Qua Sec Acc Com Machines Disabled 14 | . 1 . . . . 1 . . . . . 2 . . 3 . 2 2 . 3 Max in Single Turn 2 | . 1 . . . . 1 . . . . . 1 . . 1 . 1 1 . 2 Garrison Access 2 | . . . . . . . . . . . . 1 . 1 . . . . . . Phase Generator 1 | . . . . . . . . . . . . . . . . . . . . 1 Machines Repaired . | . . . . . . . . . . . . . . . . . . . . . Machines Dismantled . | . . . . . . . . . . . . . . . . . . . . . Machines Sabotaged . | . . . . . . . . . . . . . . . . . . . . . Overloaded Fab Kills . | . . . . . . . . . . . . . . . . . . . . . Hacking | -11 -10 -10 -10 -9 -8 -7 -7 -7 -7 -7 -6 -5 -4 -3 -3 -2 -2 -2 -1 -1 --------- Run | Yrd Mat Min Exi Min Mat Fac Was Fac Low Low Fac Fac Fac Res Tes Res Qua Sec Acc Com Machines Accessed 86 | . 4 . 2 . 6 9 . 2 . . 6 11 6 5 10 5 5 5 5 5 Terminals 56 | . 2 . . . 6 7 . . . . 3 7 4 1 5 3 4 5 4 5 Fabricators 6 | . . . . . . 1 . . . . 1 2 . . 2 . . . . . Repair Stations 5 | . . . . . . . . . . . 1 1 1 . 1 . . . 1 . Recycling Units 7 | . 2 . . . . . . 2 . . . 1 1 1 . . . . . . Scanalyzers 6 | . . . . . . 1 . . . . . . . 1 2 1 1 . . . Garrison Access 4 | . . . . . . . . . . . 1 . . 2 . 1 . . . . Total Hacks 238 | . 12 . 2 . 23 23 . 3 . . 16 40 23 9 24 11 21 13 8 10 Successful 157 | . 6 . 2 . 12 11 . 3 . . 6 24 17 6 21 7 17 13 5 7 Failed 81 | . 6 . . . 11 12 . . . . 10 16 6 3 3 4 4 . 3 3 Catastrophic 16 | . . . . . 3 4 . . . . 1 2 . . 1 2 1 . 2 . Database Lockouts . | . . . . . . . . . . . . . . . . . . . . . Manual 135 | . 5 . 1 . 20 15 . 1 . . 10 26 14 5 5 6 15 6 2 4 Terminals 176 | . 6 . . . 23 19 . . . . 9 31 18 3 12 7 19 13 6 10 Fabricators 16 | . . . . . . 3 . . . . 4 5 . . 4 . . . . . Repair Stations 11 | . . . . . . . . . . . 2 3 2 . 2 . . . 2 . Recycling Units 14 | . 6 . . . . . . 3 . . . 1 3 1 . . . . . . Scanalyzers 14 | . . . . . . 1 . . . . . . . 2 6 3 2 . . . Garrison Access 5 | . . . . . . . . . . . 1 . . 3 . 1 . . . . Terminal Hacks 66 | . 2 . 2 . 4 2 . . . . 1 11 7 . 7 2 11 10 3 4 Record 5 | . . . 1 . . . . . . . . . . . . . 1 3 . . Part Schematic 11 | . . . . . 2 . . . . . . 3 1 . 4 . 1 . . . Prototype ID Bank 3 | . 1 . . . . . . . . . . 1 . . . . 1 . . . Open Door 9 | . . . . . . . . . . . 1 . . . 1 1 . 2 3 1 Level Access Points 6 | . . . . . 1 . . . . . . 1 2 . . . 1 1 . . Branch Access Points 7 | . . . . . 1 1 . . . . . 1 1 . . 1 1 1 . . Machine Index 1 | . . . . . . . . . . . . 1 . . . . . . . . Terminal Index 7 | . 1 . . . . 1 . . . . . 1 1 . 1 . 1 . . 1 Fabricator Index 2 | . . . . . . . . . . . . 1 . . . . 1 . . . Alert Level 1 | . . . . . . . . . . . . 1 . . . . . . . . Unreport Threat 2 | . . . . . . . . . . . . . . . . . 2 . . . Locate Traps 6 | . . . . . . . . . . . . 1 2 . . . 2 . . 1 Recall Extermination 1 | . . . . . . . . . . . . . . . 1 . . . . . Zone Layout 1 | . . . . . . . . . . . . . . . . . . 1 . . Derelict Proto ID Bank 1 | . . . 1 . . . . . . . . . . . . . . . . . Activate Exoskeleton 2 | . . . . . . . . . . . . . . . . . . 2 . . Disengage Seal 1 | . . . . . . . . . . . . . . . . . . . . 1 Fabricator Hacks 10 | . . . . . . 2 . . . . . 4 . . 4 . . . . . Load Schematic 5 | . . . . . . 1 . . . . . 2 . . 2 . . . . . Build 5 | . . . . . . 1 . . . . . 2 . . 2 . . . . . Repair Station Hacks 8 | . . . . . . . . . . . 1 1 2 . 2 . . . 2 . Scan Component 5 | . . . . . . . . . . . 1 1 1 . 1 . . . 1 . Repair 3 | . . . . . . . . . . . . . 1 . 1 . . . 1 . Recycling Unit Hacks 6 | . 1 . . . . . . 2 . . . 1 1 1 . . . . . . Report Inventory 1 | . . . . . . . . 1 . . . . . . . . . . . . Retrieve Components 5 | . 1 . . . . . . 1 . . . 1 1 1 . . . . . . Scanalyzer 11 | . . . . . . 1 . . . . . . . 2 6 1 1 . . . Insert Component 8 | . . . . . . 1 . . . . . . . 1 4 1 1 . . . Analyze 3 | . . . . . . . . . . . . . . 1 2 . . . . . Garrison Access Hacks 1 | . . . . . . . . . . . . . . 1 . . . . . . Seal Access 1 | . . . . . . . . . . . . . . 1 . . . . . . Unauthorized Hacks 55 | . 3 . . . 8 6 . 1 . . 4 7 7 2 2 4 5 3 . 3 Terminals 46 | . 3 . . . 8 6 . . . . 3 6 5 1 2 2 4 3 . 3 Assimilate 2 | . . . . . 1 . . . . . . . . . . . . . . 1 Botnet 34 | . 2 . . . 6 5 . . . . 2 5 4 1 1 2 3 2 . 1 Operators 10 | . 1 . . . 1 1 . . . . 1 1 1 . 1 . 1 1 . 1 Fabricators . | . . . . . . . . . . . . . . . . . . . . . Repair Stations 1 | . . . . . . . . . . . . 1 . . . . . . . . Mechanics 1 | . . . . . . . . . . . . 1 . . . . . . . . Recycling Units 3 | . . . . . . . . 1 . . . . 2 . . . . . . . Monitor 1 | . . . . . . . . . . . . . 1 . . . . . . . Recyclers 2 | . . . . . . . . 1 . . . . 1 . . . . . . . Scanalyzers 2 | . . . . . . . . . . . . . . . . 1 1 . . . Researchers 2 | . . . . . . . . . . . . . . . . 1 1 . . . Garrison Access 3 | . . . . . . . . . . . 1 . . 1 . 1 . . . . Watchers 3 | . . . . . . . . . . . 1 . . 1 . 1 . . . . Data Cores Recovered 2 | . . . . . 1 . . . . . . . . . 1 . . . . . Used 1 | . . . . . 1 . . . . . . . . . . . . . . . Hacking Detections 65 | . 4 . . . 6 8 . 2 . . 5 10 6 3 6 3 4 3 2 3 Full Trace Events 12 | . . . . . 1 1 . . . . 1 3 1 . 2 1 . 1 1 . Feedback Events 1 | . . . . . . . . . . . . . . . . . . 1 . . Hackware Fried 1 | . . . . . . . . . . . . . . . . . . 1 . . Feedback Blocked . | . . . . . . . . . . . . . . . . . . . . . Robot Schematics Acquired . | . . . . . . . . . . . . . . . . . . . . . Robots Built . | . . . . . . . . . . . . . . . . . . . . . Authchips . | . . . . . . . . . . . . . . . . . . . . . Time . | . . . . . . . . . . . . . . . . . . . . . Total Robot Build Rating . | . . . . . . . . . . . . . . . . . . . . . Part Schematics Acquired 13 | . . . . . 2 . . . . . . 3 1 1 5 . 1 . . . Parts Built 4 | . . . . . . 1 . . . . . 2 . . 1 . . . . . Authchips . | . . . . . . . . . . . . . . . . . . . . . Time 320 | . . . . . . 73 . . . . . 88 . . 159 . . . . . Total Part Build Rating 21 | . . . . . . 3 . . . . . 12 . . 6 . . . . . Parts Repaired 3 | . . . . . . . . . . . . . 1 . 1 . . . 1 . Time 78 | . . . . . . . . . . . . . 25 . 31 . . . 22 . Parts Recycled . | . . . . . . . . . . . . . . . . . . . . . Recycled Matter . | . . . . . . . . . . . . . . . . . . . . . Retrieved Matter . | . . . . . . . . . . . . . . . . . . . . . Retrieved Components 7 | . 1 . . . . . . . . . . 3 . 3 . . . . . . Parts Scanalyzed 3 | . . . . . . . . . . . . . . 1 1 1 . . . . Part Schematics Acquired 2 | . . . . . . . . . . . . . . 1 1 . . . . . Parts Damaged . | . . . . . . . . . . . . . . . . . . . . . Bothacking | -11 -10 -10 -10 -9 -8 -7 -7 -7 -7 -7 -6 -5 -4 -3 -3 -2 -2 -2 -1 -1 ------------ Run | Yrd Mat Min Exi Min Mat Fac Was Fac Low Low Fac Fac Fac Res Tes Res Qua Sec Acc Com Used RIF Installer . | . . . . . . . . . . . . . . . . . . . . . Robots Hacked 3 | . . . . . . . . . . . . . . . 1 . . . . 2 Non-combat . | . . . . . . . . . . . . . . . . . . . . . Combat 3 | . . . . . . . . . . . . . . . 1 . . . . 2 Robot Hacks Applied 3 | . . . . . . . . . . . . . . . 1 . . . . 2 parse_system 2 | . . . . . . . . . . . . . . . . . . . . 2 find_scanalyzer 1 | . . . . . . . . . . . . . . . 1 . . . . . Relay Couplers Released 1 | . . . . . . . . . . . . 1 . . . . . . . . Machine Destruction 1 | . . . . . . . . . . . . 1 . . . . . . . . Fabnet Peak Effective % . | . . . . . . . . . . . . . . . . . . . . . Robots Rewired 4 | . . . . . . . . . . . . 2 1 . 1 . . . . . Allies Hacked . | . . . . . . . . . . . . . . . . . . . . . Hacks Repelled . | . . . . . . . . . . . . . . . . . . . . . Allies | -11 -10 -10 -10 -9 -8 -7 -7 -7 -7 -7 -6 -5 -4 -3 -3 -2 -2 -2 -1 -1 -------- Run | Yrd Mat Min Exi Min Mat Fac Was Fac Low Low Fac Fac Fac Res Tes Res Qua Sec Acc Com Total Allies 35 | . . . . 3 4 . . . . . . 2 1 . 1 . . . . 24 Largest Group 13 | . . . . 3 5 4 . . . . . 2 1 . 1 . . . . 13 Highest-Rated Group 394 | . . . . 40 145 138 . . . . . 98 47 . 99 . . . . 394 Highest-Rated Ally 234 | . . . . 16 90 90 . . . . . 49 47 . 99 . . . . 234 Total Orders . | . . . . . . . . . . . . . . . . . . . . . Ally Attacks 213 | . . . . . 41 45 . . . . . 5 4 . 8 . . . . 110 Total Damage 4293 | . . . . . 619 467 . . . . . 135 82 . 267 . . . . 2723 Kills 35 | . . . . . 6 6 . . . . . 1 . . . . . . . 22 Allies Corrupted . | . . . . . . . . . . . . . . . . . . . . . Allies Melted . | . . . . . . . . . . . . . . . . . . . . . Field Lobotomies 4 | . . . . . 4 . . . . . . . . . . . . . . . Intel | -11 -10 -10 -10 -9 -8 -7 -7 -7 -7 -7 -6 -5 -4 -3 -3 -2 -2 -2 -1 -1 ------- Run | Yrd Mat Min Exi Min Mat Fac Was Fac Low Low Fac Fac Fac Res Tes Res Qua Sec Acc Com Robot Analysis Total . | . . . . . . . . . . . . . . . . . . . . . Derelict Logs Recovered . | . . . . . . . . . . . . . . . . . . . . . Drone Launches . | . . . . . . . . . . . . . . . . . . . . . Drone Recoveries . | . . . . . . . . . . . . . . . . . . . . . Exploration | -11 -10 -10 -10 -9 -8 -7 -7 -7 -7 -7 -6 -5 -4 -3 -3 -2 -2 -2 -1 -1 ------------- Run | Yrd Mat Min Exi Min Mat Fac Was Fac Low Low Fac Fac Fac Res Tes Res Qua Sec Acc Com Turns Passed 7875 | 146 215 548 437 235 421 1545 75 146 255 48 337 815 643 194 298 370 228 285 247 387 Spaces Moved 10938 | 69 120 331 268 135 317 1013 109 217 559 166 696 1505 1075 404 550 946 475 876 520 587 Core 370 | 4 . . . . . . . . . . . . . . . . . . 77 289 Treads 952 | 65 120 331 268 135 33 . . . . . . . . . . . . . . . Legs 1297 | . . . . . 284 1013 . . . . . . . . . . . . . . Wheels . | . . . . . . . . . . . . . . . . . . . . . Hover . | . . . . . . . . . . . . . . . . . . . . . Flight 8319 | . . . . . . . 109 217 559 166 696 1505 1075 404 550 946 475 876 443 298 Fastest Speed 21 | 50 160 160 160 160 90 97 32 28 28 28 28 29 34 31 28 26 22 21 26 24 Average Speed 51 | 153 160 160 160 160 100 106 32 29 28 28 28 35 34 31 30 30 25 22 30 46 Slowest Speed 270 | 160 160 160 160 160 270 112 32 32 28 28 29 37 34 34 31 117 26 27 100 109 Overloaded Moves 31 | . . . . . . . . . . . . . . . . . 31 . . . Propulsion Burnouts . | . . . . . . . . . . . . . . . . . . . . . Robots Hopped 97 | . . . . . . . . 4 . . 3 8 20 4 15 4 2 8 18 11 Cave-ins Triggered . | . . . . . . . . . . . . . . . . . . . . . Exploration Rate (%) 38 | 5 33 76 61 33 34 29 78 9 65 19 21 40 32 15 74 26 47 70 21 23 Regions Visited 20 Branch Regions 9 Pre-discovered Areas 1 | . . . 1 . . . . . . . . . . . . . . . . . Known Exits Taken 12 | . . . . . 1 . . 1 1 1 1 1 1 1 1 1 1 1 . . Unknown Exits Taken 6 | 1 1 1 1 1 . . . . . . . . . . . . . . 1 . Scrap Searched 4 | . . 1 . 1 . . . . 1 1 . . . . . . . . . . Spaces Dug 127 | . . 9 . . . 15 . 2 3 . 3 37 21 3 12 11 1 3 7 . Terrain Destroyed 345 | . 13 49 . . . 41 . 2 3 . 3 48 21 3 12 41 1 5 28 75 Melee 94 | . . . . . . 5 . 2 3 . 3 23 21 3 12 11 1 3 7 . Projectile 1 | . . . . . . . . . . . . . . . . . . . . 1 AOE 250 | . 13 49 . . . 36 . . . . . 25 . . . 30 . 2 21 74 Terrain Rammed . | . . . . . . . . . . . . . . . . . . . . . Walls Destroyed . | . . . . . . . . . . . . . . . . . . . . . Machines Disabled . | . . . . . . . . . . . . . . . . . . . . . Actions | -11 -10 -10 -10 -9 -8 -7 -7 -7 -7 -7 -6 -5 -4 -3 -3 -2 -2 -2 -1 -1 --------- Run | Yrd Mat Min Exi Min Mat Fac Was Fac Low Low Fac Fac Fac Res Tes Res Qua Sec Acc Com Total 12646 | 90 141 340 277 154 390 1377 153 291 644 166 822 1686 1294 458 640 999 573 934 562 655 Wait 1149 | 6 18 1 . 20 31 254 26 73 76 . 95 91 178 43 41 20 87 41 31 17 Move 10738 | 68 119 330 267 134 316 1013 108 208 558 165 689 1490 1035 396 521 938 470 859 487 567 Hop 84 | . . . . . . . . 4 . . 3 6 19 3 13 3 2 8 14 9 Pick Up 62 | 1 1 1 7 . 5 11 2 . . 1 5 6 5 2 9 3 1 1 . 1 Fast Attach 78 | 7 . . . . 9 3 1 1 . . 4 6 7 1 5 1 3 9 5 16 Attach 47 | . . . . . 2 4 4 2 . . 3 7 1 4 4 5 3 1 3 4 Detach 21 | . . . . . 1 . . 1 . . 2 1 3 . 7 2 2 1 . 1 Swap 45 | . 1 . 1 . 3 8 . . 1 . 5 5 11 . 4 4 . . 1 1 Drop 90 | . . . 2 . 7 18 12 . 1 . 5 8 10 3 9 5 2 1 . 7 Fire 132 | 8 2 8 . . 15 60 . . . . . 2 . . 1 1 . 2 3 30 Melee 179 | . . . . . 1 6 . 2 8 . 3 60 25 6 22 17 3 11 13 2 Ram 5 | . . . . . . . . . . . . . . . . . . . 5 . Kick . | . . . . . . . . . . . . . . . . . . . . . Crush . | . . . . . . . . . . . . . . . . . . . . . Escape Stasis . | . . . . . . . . . . . . . . . . . . . . . Rewire . | . . . . . . . . . . . . . . . . . . . . . Trap 16 | . . . . . . . . . . . 8 4 . . 4 . . . . . Miscellaneous . | . . . . . . . . . . . . . . . . . . . . . Route ------- -11/Scrapyard -10/Materials -10/Mines (discovered 2 exits: [*Mat] / *Exi) -10/Exiles -9/Mines -8/Materials (discovered 3 exits: *Fac x3) -7/Factory (discovered 2 exits: Low x2) -7/Waste -7/Factory -7/Lower Caves -7/Lower Caves -6/Factory (discovered 3 exits: *Fac / *Low / *Ext) -5/Factory (discovered 6 exits: *Fac x4 / Upp x2) -4/Factory (discovered 6 exits: *Res x4 / *Upp x2) -3/Research -3/Testing -2/Research (discovered 2 exits: *Qua x2) -2/Quarantine -2/Section 7 -1/Access -1/Command History --------- Turn | Location | Event 7 | -11/Scrapyard | Discovered new exit (range 15) 147 | -11/Scrapyard | Entered Materials 313 | -10/Materials | Build established: Mutant 334 | -10/Materials | Discovered new exit (range 12) 362 | -10/Materials | Entered Mines 400 | -10/Mines | A weapon hastily lodged in a ceiling crevice suddenly fell to the ground 612 | -10/Mines | Discovered new exit (range 14) 904 | -10/Mines | Deemed a non-threat by the Exiles lab entrance 904 | -10/Mines | Discovered new exit (range 5) 910 | -10/Mines | Entered Exiles 955 | -10/Exiles | Met 8R-AWN 982 | -10/Exiles | Met EX-HEX 1030 | -10/Exiles | Met EX-BIN 1049 | -10/Exiles | Aligned with FarCom system 1051 | -10/Exiles | Given EX-Vault access code 1088 | -10/Exiles | Opened EX-Vault 1101 | -10/Exiles | Found Superbattery 1105 | -10/Exiles | Found Trap Reconfigurator 1110 | -10/Exiles | Found Field Lobotomy Kit 1144 | -10/Exiles | Warned to stay clear of 0b10 Research branches 1195 | -10/Exiles | Learned location of Zion (-6) 1197 | -10/Exiles | Met EX-DEC 1331 | -10/Exiles | Discovered new exit (range 10) 1347 | -10/Exiles | Stole three prototypes: Superbattery, Trap Reconfigurator, Field Lobotomy Kit 1347 | -10/Exiles | Entered Mines 1451 | -9/Mines | Assisted by bots powering up and referring to "LRC-V3" 1575 | -9/Mines | Discovered new exit (range 5) 1582 | -9/Mines | Entered Materials 1582 | -8/Materials | Accompanied by 3 allies 1582 | -8/Materials | Evolved 4 slots: Propulsion x2, Utility x2 1708 | -8/Materials | Assimilated H-61 Shepherd with FLK Orb 1748 | -8/Materials | Identified exit to Factory 1789 | -8/Materials | Assimilated Y-45 Defender with FLK Orb 1797 | -8/Materials | Assimilated G-47 Trooper with FLK Orb 1835 | -8/Materials | Lost 3 allies 1892 | -8/Materials | Assimilated G-47 Trooper with FLK Orb 2003 | -8/Materials | Entered Factory 2003 | -7/Factory | Accompanied by 4 allies 2003 | -7/Factory | Evolved 2 slots: Utility x2 2005 | -7/Factory | FarCom data flow suspended 2298 | -7/Factory | Build established: Scavenger-Skirmisher 2301 | -7/Factory | Identified exit to Lower Caves 2922 | -7/Factory | Build established: Skirmisher 3016 | -7/Factory | Found Prototype Device 3062 | -7/Factory | Identified Active Sensor Suite 3498 | -7/Factory | Fabricated Hacking Suite (x1) 3548 | -7/Factory | Sucked down chute 3548 | -7/Factory | Entered Waste 3561 | -7/Waste | Spotted C-40 Crusher 3578 | -7/Waste | Spotted C-40 Crusher 3580 | -7/Waste | Spotted C-40 Crusher 3587 | -7/Waste | Spotted C-40 Crusher 3593 | -7/Waste | Spotted C-40 Crusher 3594 | -7/Waste | Spotted C-40 Crusher 3612 | -7/Waste | Discovered new exit (range 20) 3622 | -7/Waste | Identified exit to Factory 3623 | -7/Waste | Entered Factory 3763 | -7/Factory | Discovered exit to Lower Caves (range 6) 3769 | -7/Factory | Entered Lower Caves 3771 | -7/Lower Caves | Encountered a Warlord checkpoint 3777 | -7/Lower Caves | P-60 Hacker assimilated allied Z8-K43(M) 3847 | -7/Lower Caves | Build established: Scout 4020 | -7/Lower Caves | Discovered new exit (range 8) 4021 | -7/Lower Caves | Identified exit to Lower Caves 4024 | -7/Lower Caves | Entered another Lower Caves area 4045 | -7/Lower Caves | Discovered new exit (range 18) 4069 | -7/Lower Caves | Identified exit to Factory 4072 | -7/Lower Caves | Entered Factory 4072 | -6/Factory | Evolved 2 slots: Utility x2 4197 | -6/Factory | Discovered new exit (range 6) 4198 | -6/Factory | Identified exit to Lower Caves 4228 | -6/Factory | Discovered new exit (range 6) 4229 | -6/Factory | Identified exit to Extension 4297 | -6/Factory | Discovered new exit (range 21) 4311 | -6/Factory | Identified exit to Factory 4409 | -6/Factory | Entered another Factory area 4409 | -5/Factory | Evolved 2 slots: Utility x2 4488 | -5/Factory | Identified exit to Factory 4488 | -5/Factory | Identified exit to Upper Caves 4502 | -5/Factory | Build established: Hacker-Scout 4687 | -5/Factory | Spotted B-75 Beast 4709 | -5/Factory | Search patrols dispatched 4814 | -5/Factory | Fabricated Adv. Hacking Suite (x1) 4843 | -5/Factory | Fabricated Adv. Hacking Suite (x1) 5009 | -5/Factory | Search patrols dispatched 5224 | -5/Factory | Entered another Factory area 5224 | -4/Factory | Evolved 2 slots: Propulsion x2 5265 | -4/Factory | Discovered new exit (range 5) 5274 | -4/Factory | Identified exit to Research 5274 | -4/Factory | Identified exit to Upper Caves 5310 | -4/Factory | Repaired Imp. Trap Scanner 5376 | -4/Factory | Build established: Wizard-Mutant 5867 | -4/Factory | Entered Research 5867 | -3/Research | Evolved 2 slots: Utility x2 6006 | -3/Research | Build established: Wizard-Scout 6032 | -3/Research | Spotted B-86 Titan 6055 | -3/Research | Discovered new exit (range 11) 6058 | -3/Research | Identified exit to Testing 6061 | -3/Research | Entered Testing 6126 | -3/Testing | Found Prototype Launcher 6126 | -3/Testing | Identified Z-bomb Delivery System 6138 | -3/Testing | Spotted Alpha 7 6153 | -3/Testing | Fabricated Adv. Hacking Suite (x1) 6164 | -3/Testing | Spotted Striker 6165 | -3/Testing | Spotted Striker 6175 | -3/Testing | Found Prototype Energy Gun 6175 | -3/Testing | Identified Tachyon Dispersion Ray 6189 | -3/Testing | Rewired Striker 6192 | -3/Testing | Spotted Alpha 7 6217 | -3/Testing | Found Prototype Launcher 6226 | -3/Testing | Identified Tesla Bomb Launcher 6259 | -3/Testing | Found Gamma Bomb Array 6267 | -3/Testing | Found Prototype Launcher 6331 | -3/Testing | Repaired Lrn. Sensor Array 6345 | -3/Testing | Identified Hellfire Missile Launcher 6355 | -3/Testing | Discovered new exit (range 18) 6358 | -3/Testing | Identified exit to Research 6359 | -3/Testing | Entered Research 6359 | -2/Research | Evolved 2 slots: Utility x2 6430 | -2/Research | Spotted B-90 Cyclops 6461 | -2/Research | Found Prototype Slashing Weapon 6512 | -2/Research | Identified Vibroblade 6512 | -2/Research | Identified exit to Quarantine 6646 | -2/Research | Spotted B-90 Cyclops 6729 | -2/Research | Entered Quarantine 6736 | -2/Quarantine | Found Prototype Processor 6757 | -2/Quarantine | Identified exit to Access 6768 | -2/Quarantine | Found Alien Impact Weapon 6768 | -2/Quarantine | Identified Core Stripper 6778 | -2/Quarantine | Identified Spectral Analyzer 6798 | -2/Quarantine | Found Alien Artifact 6798 | -2/Quarantine | Identified Subatomic Replicator 6826 | -2/Quarantine | Found Alien Artifact 6826 | -2/Quarantine | Identified Core Reset Matrix 6826 | -2/Quarantine | Used Core Reset Matrix 6830 | -2/Quarantine | Detected hypermatrix surge 6830 | -2/Quarantine | Sensed 15 artifacts in vicinity 6938 | -2/Quarantine | Spotted Fortress 6955 | -2/Quarantine | Discovered new exit (range 6) 6956 | -2/Quarantine | Identified exit to Section 7 6957 | -2/Quarantine | Entered Section 7 6958 | -2/Section 7 | Sensed 21 artifacts in vicinity 6972 | -2/Section 7 | Spotted S7 Guard 7037 | -2/Section 7 | Found Integrated Dissipator 7037 | -2/Section 7 | Installed Integrated Dissipator, increased core heat dissipation (+20) 7056 | -2/Section 7 | Spotted Executioner 7056 | -2/Section 7 | Spotted Executioner 7074 | -2/Section 7 | Spotted Executioner 7074 | -2/Section 7 | Spotted Executioner 7076 | -2/Section 7 | Spotted Striker 7076 | -2/Section 7 | Spotted Striker 7093 | -2/Section 7 | Spotted B-99 Colossus 7108 | -2/Section 7 | Found LRC Insulator 7108 | -2/Section 7 | Installed LRC Insulator, gained EM resistance (25) 7111 | -2/Section 7 | Found LRC Inertial Stabilizer 7111 | -2/Section 7 | Installed LRC Inertial Stabilizer, increased mass support (+10) 7113 | -2/Section 7 | Found LRC Armor 7113 | -2/Section 7 | Installed LRC Armor, increased core integrity (+250) 7126 | -2/Section 7 | Found Integrated Reactor 7126 | -2/Section 7 | Installed Integrated Reactor, increased core energy generation (+10) 7198 | -2/Section 7 | Spotted Alpha 7 7202 | -2/Section 7 | Spotted Alpha 7 7216 | -2/Section 7 | Adv. Hacking Suite fried by hacking feedback 7228 | -2/Section 7 | Spotted B-90 Cyclops 7242 | -2/Section 7 | Entered Access 7242 | -1/Access | Evolved 2 slots: Power x1, Utility x1 7264 | -1/Access | Lost 5 parts (2n2u1w) 7268 | -1/Access | Repaired Q-thruster 7283 | -1/Access | Spotted B-99 Colossus 7461 | -1/Access | Destroyed 8 combat bots 7484 | -1/Access | Lost 11 parts (1p5n4u1w) 7486 | -1/Access | Discovered new exit (range 7) 7489 | -1/Access | Entered Command 7581 | -1/Command | Phase Generator disabled 7634 | -1/Command | Core integrity fell below 50% 7698 | -1/Command | Disengaged cave seal 7718 | -1/Command | Lost 3 parts (3u) 7828 | -1/Command | Spotted M Guard 7828 | -1/Command | Spotted M Guard 7831 | -1/Command | Spotted Combat Programmer 7832 | -1/Command | Spotted Combat Programmer 7840 | -1/Command | Emitted hypermatrix ping 7845 | -1/Command | Assembled emerged from beneath the floor 7853 | -1/Command | Met MAIN.C 7861 | -1/Command | 0b10 Conduit disabled 7865 | -1/Command | Core integrity fell below 20% 7876 | -1/Command | Destroyed by M Guard with Advanced Micro-nuke Launcher Last Messages --------------- Exp. Target Analyzer Exp. Focal Shield Adv. Dynamic Insulation System Centrium Medium Armor Plating Exp. Weapon Shielding Exp. Remote Datajack EMDS 07867_ Penetrated by EMDS Slug. 07867_ EMDS Slug penetrates Reinforced Barrier. 07870_ EMDS Slug penetrates MAIN.C. 07873_ EMDS Slug penetrates Combat Programmer. 07873_ Broken Vibroblade destroyed. 07873_ Cld. Impulse Thruster destroyed. 07873_ Adv. Datajack destroyed. 07873_ Field Propulsion Array destroyed. 07876_ Combat Programmer resets Combat Programmer, system corruption cleaned. 07876_ Penetrated by EMDS Slug. 07876_ Adv. Hacking Suite destroyed. 07876_ Knocked back. Map ----- +----------------------------------------------------+ | ?????????????????????????????????????????????????? | | ?????????????????????????????????????????????????? | | ????????????????????????????????????????????? ???? | | ????????????????????????????????????????????? ???? | | ????????????????????????????????????????????? ???? | | ????????????????????????????????????????????? ???? | | ????????????????????????????????????????????? #??? | | ??????????????????????????????????????????### #??? | | ?????????????????????????????????????????? ??? | | ??????????????????????????????????????????# #??? | | ??????????????????????????????????????????# #??? | | ??????????????????????????????????????????# #??? | | ??????????????????????????????????????????# #??? | | ??????????????????????????????????????????# #??? | | ??????????????????????????????????????????# #??? | | ??????????????????????????????????????????# #??? | | ??????????????????????????????????????????# #??? | | ??????????????????????????????????????????# #??? | | ??????????????????????????????????????????# #??? | | ??????????????????????????????????????????# #??? | | ??????????????????????????????????????????# #??? | | ##################????????????????????????# #??? | | """ """" #????????????????????????# #??? | | "" #????????????????????????# #??? | | " "" #######################??# #??? | | """"""" % @ #### ##?? | | " """ ## ##? | | """""" p YY # #? | | """""" ################### # ## | | """ MMM #?????????????????# # # | | MMM #?????????????????# ## | | ""#?????????????????# T# | | " """""""#?????????????????#+++## # | | """""""#?????????????????# | | """""""#?????????????????#% | | " " #?????????????????# | | " " #?????????????????# | | """" " #?????????????????# % | | " " " " """" #?????????????????# ### | | " " " " #?????????????????######?# ### | | """"""""" " #????????????????????????#####?## | | """ " """"""""#???????????????????????????????? | | """ " " " #???????????????????????????????? | | ##################???????????????????????????????? | | ?????????????????????????????????????????????????? | | ?????????????????????????????????????????????????? | | ?????????????????????????????????????????????????? | | ?????????????????????????????????????????????????? | | ?????????????????????????????????????????????????? | | ?????????????????????????????????????????????????? | +----------------------------------------------------+ Best States ------------- Heat Dissipation 72 Energy Generation 47 Energy Capacity 1740 Matter Stores 300 Matter Capacity 300 Sight Range 24 Robot Scan Range 20 Terrain Scan Density 10 Jamming Range 16 Power Amplification 30 Corruption Block 20 Resistance: EX 50 Resistance: EM 25 Evasion (%) 65 Melee Accuracy 8 Recoil Reduction 2 Offensive Hacking 68 Defensive Hacking 14 Trap Extractor Capacity 6 Item Schematics ----------------- None Robot Schematics ------------------ None Fabricated ------------ Hacking Suite | x1 | -7/Factory Adv. Hacking Suite | x1 | -5/Factory Adv. Hacking Suite | x1 | -5/Factory Adv. Hacking Suite | x1 | -3/Testing Alien Tech Used ----------------- Core Stripper Subatomic Replicator Core Reset Matrix Integrated Dissipator LRC Insulator LRC Inertial Stabilizer LRC Armor Integrated Reactor Achievements -------------- Guerrilla Style Challenges ------------ None Game ------ Seed ChromaticStructuralTube Manual? 0 Play Time 02:14:35 Cumulative 254.2 hours Start 2024.06.15 @ 12:42:39 End 2024.06.15 @ 15:04:00 Sessions 1 Manual Loads 0 Difficulty Rogue Special Mode None Game No. 245 Rogue 240 Adventurer 5 Explorer 0 Win Type - Total 4 Types 3/0/0/1/0/0/0/0/0 Lore% 62 Gallery% 82 Achievement% 64 Wizard Run 0 Options --------- Layout 2 ASCII 0 Keyboard 0 Movement Arrows Keybinds 0 Fullscreen 1 Font 24/Terminus Map View 50x44 Zoom Use 0% Tactical HUD 1 Map Filters NONE Filters NONE Steam 1 RUN: 756acd62-1c11-43f3-aca6-4b2563f6223a